bitfinex-derivatives/quotes_ETHF0:USTF0_20260123
["timestamp","ask_amount","ask_price","bid_price","bid_amount"]
[1769143694566,0.00852599,2984.8,2983.6,1.78000722]
[1769143698769,0.15044259,2986.2,2984.1,1.78000722]
[1769143698968,0.15044259,2986.0,2984.1,1.78000722]
[1769143699171,0.15044259,2985.8,2984.1,1.78000722]
[1769143699670,0.15301852,2985.8,2984.1,1.78000722]
[1769143700271,0.15301852,2985.8,2984.2,0.14876055]
[1769143701073,0.15301852,2985.8,2984.7,0.00502993]
[1769143701272,0.15301852,2985.8,2984.7,0.00739164]
[1769143703671,0.00257593,2985.8,2984.7,0.00739164]
[1769143706875,0.15301852,2985.8,2984.7,0.00739164]
[1769143714289,0.13757585,2985.6,2984.7,0.00739164]
[1769143717080,0.13757585,2985.4,2984.7,0.00739164]
[1769143717281,0.13757585,2985.4,2983.8,1.78000722]
[1769143717484,0.14260578,2985.4,2983.8,1.78000722]
[1769143718187,0.13757585,2985.2,2983.7,1.78000722]
[1769143718383,0.13757585,2985.0,2983.7,0.00334475]
[1769143720889,0.13757585,2984.8,2983.7,0.00334475]
[1769143721087,0.13757585,2984.6,2983.7,0.00334475]
[1769143724388,0.13757585,2984.6,2983.1,1.78000722]
[1769143724591,0.13757585,2984.6,2983.0,1.78000722]
[1769143725388,0.13757585,2984.6,2983.0,1.78237116]
[1769143726289,0.13757585,2984.6,2983.0,1.93052437]
[1769143726491,0.13757585,2984.6,2983.1,1.92816043]
[1769143727186,0.13757585,2984.6,2983.0,1.78237116]
[1769143729892,0.13757585,2984.4,2983.0,0.00236394]
[1769143736795,0.13757585,2984.2,2983.0,0.00236394]
[1769143737500,0.00502993,2983.9,2983.0,0.00236394]
[1769143744601,0.14422389,2983.9,2983.0,0.00236394]
[1769143753812,0.14248337,2983.8,2983.0,0.00236394]
[1769143758911,0.14248337,2983.8,2982.7,1.78000722]
[1769143759113,0.14248337,2983.6,2982.5,1.78000722]
[1769143759517,0.00502993,2983.9,2982.5,1.78000722]
[1769143759518,0.41825198,2983.5,2982.5,1.78000722]
[1769143759818,0.27576861,2983.4,2982.5,1.78000722]
[1769143760016,0.27576861,2983.4,2982.5,1.78360319]
[1769143760416,0.27576861,2983.4,2982.5,0.00359597]
[1769143761529,0.14248337,2983.3,2982.5,0.00359597]
[1769143762226,1.94027888,2983.2,2981.7,0.15092493]
[1769143762522,0.88072244,2982.9,2981.7,0.15092493]
[1769143763029,0.88072244,2982.9,2981.7,0.15447463]
[1769143763224,0.88072244,2982.3,2981.7,0.0035497]
[1769143763827,0.88072244,2982.0,2981.1,0.15096958]
[1769143764330,0.88072244,2982.0,2980.6,0.15096958]
[1769143764531,0.88072244,2981.7,2980.6,0.15096958]
[1769143764936,0.88072244,2982.1,2980.6,0.15355786]
[1769143766829,0.00502993,2982.3,2980.6,0.15355786]
[1769143772429,0.00502993,2982.3,2980.6,0.00258828]
[1769143772634,0.27367322,2982.2,2980.6,0.00258828]
[1769143772839,0.27368153,2982.1,2980.6,0.00258828]
[1769143773132,1.30343393,2982.3,2980.6,0.00258828]
[1769143773336,1.05380879,2982.2,2980.6,0.00258828]
[1769143773643,1.30343393,2982.3,2980.6,0.00258828]
[1769143773837,1.0538085,2982.2,2980.6,0.00258828]
[1769143774137,1.30343393,2982.3,2980.6,0.00258828]
[1769143774338,1.05340106,2982.2,2980.6,0.00258828]
[1769143774641,1.30343393,2982.3,2980.6,0.00258828]
[1769143774937,1.05342011,2982.2,2980.6,0.00258828]
[1769143775137,1.30343393,2982.3,2980.6,0.00258828]
[1769143775340,2.35333803,2982.2,2980.6,0.00258828]
[1769143775543,1.3,2982.2,2980.6,0.00258828]
[1769143778944,7.798,2982.2,2980.6,0.15369276]
[1769143779845,0.00151694,2982.1,2980.6,0.00258828]
[1769143782441,0.00151694,2982.1,2980.6,0.15277751]
[1769143784746,1.865,2982.0,2980.6,0.15277751]
[1769143786142,0.27456812,2981.9,2980.6,0.15277751]
[1769143786346,1.865,2982.0,2980.6,0.15277751]
[1769143786547,0.27456889,2981.9,2980.6,0.15277751]
[1769143786846,1.865,2982.0,2980.6,0.15277751]
[1769143787047,0.27457547,2981.9,2980.6,0.15277751]
[1769143787353,1.865,2982.0,2980.6,0.15277751]
[1769143787652,0.27459921,2981.9,2980.6,0.15277751]
[1769143787856,0.27459921,2981.8,2980.6,0.15277751]
[1769143788154,1.865,2982.0,2980.6,0.15277751]
[1769143788453,1.05929854,2981.9,2980.6,0.15277751]
[1769143788753,0.27462081,2981.8,2980.6,0.15277751]
[1769143788952,0.88198052,2981.3,2980.6,0.15277751]
[1769143789156,0.88609025,2981.3,2980.6,0.15277751]
[1769143789654,0.88609025,2981.3,2980.6,0.00258828]
[1769143794257,0.00410973,2981.3,2980.6,0.00258828]
[1769143794456,0.00410973,2981.3,2980.6,0.15220556]
[1769143798954,0.88198052,2981.9,2980.7,0.14877565]
[1769143799360,0.88198052,2982.2,2981.0,0.14879113]
[1769143799554,0.78841278,2982.1,2981.0,0.14879113]
[1769143799754,0.78841278,2982.0,2981.0,0.14879113]
[1769143799956,0.00352151,2982.0,2981.0,0.14879113]
[1769143800256,0.00352151,2982.0,2981.1,0.14879113]
[1769143800962,0.00352151,2982.0,2981.1,1.92545355]
[1769143801158,0.00352151,2982.0,2981.2,0.14896435]
[1769143801858,0.88198052,2981.9,2981.2,0.14896435]
[1769143802055,0.00352151,2982.0,2980.9,1.9256294]
[1769143802246,0.88198052,2981.6,2980.9,0.14896698]
[1769143804964,0.88198052,2981.9,2980.9,0.14896698]
[1769143805860,0.00352151,2982.0,2980.9,0.14896698]
[1769143806655,0.00352151,2982.0,2981.1,0.14978735]
[1769143806862,0.88198052,2982.5,2981.1,0.14978735]
[1769143807664,0.88198052,2982.8,2981.4,0.14978735]
[1769143807864,0.88469083,2982.8,2981.4,0.14978735]
[1769143808861,0.00271031,2982.8,2981.4,0.14978735]
[1769143810665,0.00271031,2982.8,2981.6,0.14978735]
[1769143821871,0.00271031,2982.8,2981.5,1.94455242]
[1769143821872,0.00271031,2982.8,2981.8,0.14978735]
[1769143822169,1.866,2983.5,2981.9,0.14978735]
[1769143823070,1.87019403,2983.5,2981.9,0.14978735]
[1769143824272,0.00419403,2983.5,2981.9,0.14978735]
[1769143828280,0.00419403,2983.5,2982.0,0.14978735]
[1769143835182,0.7861477,2983.4,2982.1,0.14821318]
[1769143835382,0.00419403,2983.5,2982.1,0.14821318]
[1769143835582,0.78614768,2983.4,2982.1,0.14821318]
[1769143835788,0.00419403,2983.5,2982.1,0.14821318]
[1769143836285,0.78649106,2983.4,2982.1,0.14821318]
[1769143836481,0.00419403,2983.5,2982.1,0.14821318]
[1769143836680,0.78649114,2983.4,2982.1,0.14821318]
[1769143836880,0.00419403,2983.5,2982.1,0.14821318]
[1769143837085,0.78649098,2983.4,2982.1,0.14821318]
[1769143837286,0.00419403,2983.5,2982.2,0.14823565]
[1769143837486,0.78676566,2983.4,2982.2,0.14823565]
[1769143837784,0.00419403,2983.5,2982.2,0.14823565]
[1769143838089,0.00419403,2983.5,2982.4,1.92489807]
[1769143838385,0.00419403,2983.5,2982.6,0.14826687]
[1769143840585,0.00419403,2983.5,2982.8,0.00502993]
[1769143840786,0.00419403,2983.5,2982.8,0.00850379]
[1769143846988,0.00502993,2983.4,2982.8,0.00850379]
[1769143847690,0.00502993,2983.4,2982.9,0.14743625]
[1769143848092,1.865,2984.0,2982.9,0.14743625]
[1769143848288,0.78641167,2983.9,2982.9,0.14743625]
[1769143848591,1.865,2984.0,2982.9,0.14743625]
[1769143848988,1.86762723,2984.0,2982.9,0.14743625]
[1769143852388,0.00262723,2984.0,2982.9,0.14743625]
[1769143852992,1.865,2984.4,2983.0,1.92227079]
[1769143853190,6.498,2985.0,2983.1,0.14560837]
[1769143853396,2.64957888,2984.9,2983.1,0.14560837]
[1769143853587,0.78557888,2984.8,2983.1,0.14560837]
[1769143853790,0.78557888,2984.7,2983.1,0.14560837]
[1769143853992,0.78557888,2984.6,2983.1,0.14560837]
[1769143854193,0.78557888,2984.5,2983.1,0.14560837]
[1769143854398,0.78557888,2984.4,2983.1,0.14560837]
[1769143854591,0.00246277,2984.7,2983.1,0.14560837]
[1769143854798,0.78535065,2984.6,2983.1,0.14560837]
[1769143854997,0.78535065,2984.5,2983.1,0.14560837]
[1769143855205,0.00246277,2984.7,2983.1,0.14560837]
[1769143855404,0.78514657,2984.6,2983.1,0.14560837]
[1769143855601,0.78514657,2984.5,2983.1,0.14560837]
[1769143855902,0.00246277,2984.7,2983.1,0.14560837]
[1769143856101,0.78514683,2984.6,2983.1,0.14560837]
[1769143856301,0.78514683,2984.5,2983.1,0.14560837]
[1769143856501,0.00246277,2984.7,2983.1,0.14560837]
[1769143856701,0.78498679,2984.6,2983.1,0.14560837]
[1769143856905,0.78498679,2984.5,2983.1,0.14560837]
[1769143857101,0.00246277,2984.7,2983.1,0.14560837]
[1769143857293,0.78486238,2984.6,2983.1,0.14560837]
[1769143857498,0.78486238,2984.5,2983.1,0.14560837]
[1769143857700,0.00246277,2984.7,2983.1,0.14560837]
[1769143857906,0.78483332,2984.6,2983.1,0.14560837]
[1769143858199,0.00246277,2984.7,2983.1,0.14560837]
[1769143858403,0.78472051,2984.6,2983.1,0.14560837]
[1769143858596,0.00246277,2984.7,2983.1,0.14560837]
[1769143858798,0.78472062,2984.6,2983.1,0.14560837]
[1769143858996,0.00246277,2984.7,2983.1,0.14560837]
[1769143859197,0.7847206,2984.6,2983.1,0.14560837]
[1769143859401,0.00246277,2984.7,2983.1,0.14560837]
[1769143859600,0.7846408,2984.6,2983.1,0.14560837]
[1769143859805,0.00246277,2984.7,2983.1,0.14560837]
[1769143860007,0.78464062,2984.6,2983.1,0.14560837]
[1769143860203,0.00246277,2984.7,2983.1,0.14560837]
[1769143860401,0.78466133,2984.6,2983.1,0.14560837]
[1769143860602,0.00246277,2984.7,2983.1,0.14560837]
[1769143860906,0.78464244,2984.6,2983.1,0.14560837]
[1769143861100,0.00246277,2984.7,2983.1,0.14560837]
[1769143861301,0.00246277,2984.7,2983.4,0.14547981]
[1769143861501,0.00246277,2984.7,2983.4,0.31325981]
[1769143861708,0.00246277,2984.7,2983.5,0.14547981]
[1769143865206,1.86646277,2984.7,2983.5,0.14547981]
[1769143865408,0.78416497,2984.6,2983.1,0.14925162]
[1769143865608,0.78416497,2984.5,2983.1,0.14925162]
[1769143865809,1.86646277,2984.7,2983.1,0.14925162]
[1769143866009,0.78421853,2984.6,2983.1,0.14925162]
[1769143866210,0.78431061,2984.5,2983.1,0.14925162]
[1769143866411,1.86646277,2984.7,2983.1,0.14925162]
[1769143866610,0.78435181,2984.6,2983.1,0.14925162]
[1769143866809,0.78435181,2984.5,2983.1,0.14925162]
[1769143867010,1.86646277,2984.7,2983.1,0.14925162]
[1769143867211,0.78435173,2984.6,2983.1,0.14925162]
[1769143867508,1.86646277,2984.7,2983.1,0.14925162]
[1769143867509,0.78435173,2984.5,2983.1,0.14925162]
[1769143867708,1.86646277,2984.7,2983.1,0.14925162]
[1769143867909,0.78451297,2984.6,2983.1,0.14925162]
[1769143868114,1.86646277,2984.7,2983.1,0.14925162]
[1769143868115,0.78451297,2984.5,2983.1,0.14925162]
[1769143868315,1.86646277,2984.7,2983.1,0.14925162]
[1769143868514,0.78367874,2984.6,2983.1,0.14925162]
[1769143868714,0.78367874,2984.5,2983.1,0.14925162]
[1769143868914,0.88022375,2984.3,2983.1,0.14925162]
[1769143872821,0.88022375,2984.0,2983.1,0.14925162]
[1769143874320,0.88022375,2983.7,2983.1,0.14925162]
[1769143874919,0.88022375,2984.0,2983.1,0.14925162]
[1769143875724,0.88022375,2984.3,2983.1,0.14925162]
[1769143876520,0.88022375,2984.6,2983.2,0.14683014]
[1769143876821,0.88022375,2984.0,2983.2,0.14683014]
[1769143877012,0.88022375,2984.0,2982.8,1.93199635]
[1769143877617,0.88022375,2984.0,2982.8,2.09980635]
[1769143878424,0.88022375,2983.7,2982.8,1.93199635]
[1769143880325,0.88022375,2984.0,2982.9,0.1469073]
[1769143886329,0.88022375,2983.7,2982.9,0.1469073]
[1769143889634,0.88022375,2983.7,2982.8,0.00850379]
[1769143892234,0.88022375,2983.7,2982.8,1.78516621]
[1769143897334,0.88022375,2983.7,2982.8,1.93133792]
[1769143898842,0.88022375,2984.0,2982.9,1.92283698]
[1769143899136,0.88022375,2983.7,2983.0,0.14617456]
[1769143899332,0.88022375,2983.7,2982.9,1.77666242]
[1769143901435,0.88022375,2983.7,2982.8,0.00850379]
[1769143902835,0.78642731,2983.6,2982.8,0.00850379]
[1769143903032,0.88022375,2983.7,2982.8,0.00850379]
[1769143903237,0.78643034,2983.6,2982.8,0.00850379]
[1769143903542,0.88022375,2983.7,2982.8,0.00850379]
[1769143903735,0.78635796,2983.6,2982.8,0.00850379]
[1769143903936,0.88022375,2983.7,2982.8,0.00850379]
[1769143904137,0.78635796,2983.6,2982.8,0.00850379]
[1769143904337,0.88022375,2983.7,2982.8,0.00850379]
[1769143904638,0.78627931,2983.6,2982.8,0.00850379]
[1769143904839,0.88022375,2983.7,2982.8,0.00850379]
[1769143905041,0.78627931,2983.6,2982.8,0.00850379]
[1769143905337,0.88022375,2983.7,2982.8,0.00850379]
[1769143905538,0.78621124,2983.6,2982.8,0.00850379]
[1769143905740,0.88022375,2983.7,2982.8,0.00850379]
[1769143905939,0.88022375,2983.4,2982.8,0.00850379]
[1769143908339,0.88022375,2983.4,2982.5,0.14617456]
[1769143908538,0.78616749,2983.3,2982.5,0.14617456]
[1769143908735,0.78616749,2983.2,2982.5,0.14617456]
[1769143908937,0.88022375,2983.4,2982.5,0.14617456]
[1769143909139,0.78618906,2983.3,2982.5,0.14617456]
[1769143909344,0.78618906,2983.2,2982.5,0.14944892]
[1769143909541,0.88022375,2983.4,2982.5,0.14944892]
[1769143909742,0.78585511,2983.3,2982.5,0.14944892]
[1769143909942,0.88022375,2983.4,2982.5,0.14944892]
[1769143910145,0.78585381,2983.3,2982.5,0.14944892]
[1769143910443,0.88022375,2983.4,2982.5,0.14944892]
[1769143910636,0.78562103,2983.3,2982.5,0.14944892]
[1769143910933,0.88022375,2983.4,2982.5,0.14944892]
[1769143911129,0.78562103,2983.3,2982.5,0.14944892]
[1769143911339,0.88022375,2983.4,2982.5,0.14944892]
[1769143916144,0.88022375,2983.4,2982.5,0.00327436]
[1769143925052,0.88022375,2983.4,2982.7,0.00502993]
[1769143927148,0.88022375,2983.8,2982.7,0.00502993]
[1769143927349,0.78507009,2983.7,2982.7,0.00502993]
[1769143927546,0.88022375,2983.5,2982.7,0.00502993]
[1769143930554,0.88022375,2983.2,2982.7,0.00502993]
[1769143930858,0.88089511,2983.7,2982.5,0.00327436]
[1769143931153,0.00502993,2983.2,2982.5,0.00327436]
[1769143931550,0.00502993,2983.2,2982.1,1.77666242]
[1769143931748,0.00502993,2983.2,2982.0,1.92416158]
[1769143931943,0.78583627,2983.1,2982.0,0.14749916]
[1769143932148,1.87002993,2983.2,2982.0,0.14749916]
[1769143932351,0.7857124,2983.1,2982.0,0.14749916]
[1769143932549,1.87002993,2983.2,2982.0,0.15082387]
[1769143932761,0.7859092,2983.1,2982.0,0.15082387]
[1769143932953,1.87002993,2983.2,2982.0,0.15082387]
[1769143933150,0.78590924,2983.1,2982.0,0.15082387]
[1769143933350,0.00502993,2983.2,2982.4,1.92406717]
[1769143933556,0.00502993,2983.2,2982.4,0.14740475]
[1769143934155,2.74589511,2983.9,2982.5,0.14822975]
[1769143934350,0.7857805,2983.8,2982.5,0.14822975]
[1769143934551,0.7857805,2983.7,2982.5,0.14822975]
[1769143934752,0.7857805,2983.6,2982.5,0.14822975]
[1769143934954,0.88089511,2983.9,2982.6,0.14822975]
[1769143935152,0.78587147,2983.8,2982.6,0.14822975]
[1769143935354,0.78587147,2983.7,2982.6,0.14822975]
[1769143935555,0.78587147,2983.6,2982.6,0.14822975]
[1769143935757,0.88089511,2983.9,2982.6,0.14822975]
[1769143936060,0.78599832,2983.8,2982.6,0.14822975]
[1769143936261,0.78599832,2983.7,2982.6,0.14822975]
[1769143936461,0.88089511,2983.5,2982.4,1.77666242]
[1769143936660,0.88089511,2983.5,2982.3,1.77666242]
[1769143936851,0.88089511,2983.5,2982.4,1.77666242]
[1769143937054,0.88089511,2983.5,2982.3,1.92473709]
[1769143937255,0.78624724,2983.4,2982.4,1.77666242]
[1769143937460,0.88089511,2983.5,2982.4,1.77666242]
[1769143937659,0.78624731,2983.4,2982.4,1.77666242]
[1769143937855,0.88089511,2983.5,2982.4,1.77666242]
[1769143938055,0.78624731,2983.4,2982.4,1.77666242]
[1769143938255,0.88089511,2983.5,2982.4,1.77666242]
[1769143938456,0.78626256,2983.4,2982.4,1.77666242]
[1769143938658,0.78629666,2983.3,2982.3,1.92473709]
[1769143938859,0.88089511,2983.5,2982.3,0.14807467]
[1769143939060,0.78630051,2983.4,2982.3,0.14807467]
[1769143939358,0.78630051,2983.3,2982.3,0.14807467]
[1769143939559,1.865,2983.6,2982.4,0.14797965]
[1769143939754,0.78626755,2983.5,2982.4,0.14797965]
[1769143939963,0.78626755,2983.4,2982.4,0.14797965]
[1769143940155,0.78626755,2983.3,2982.4,0.14797965]
[1769143940362,1.865,2983.6,2982.4,0.14797965]
[1769143940562,0.78626282,2983.5,2982.4,0.14797965]
[1769143940764,0.78626282,2983.4,2982.4,0.14797965]
[1769143941065,0.78626282,2983.3,2982.4,0.14797965]
[1769143941269,1.865,2983.6,2982.4,0.14797965]
[1769143941470,0.7862495,2983.5,2982.4,0.14797965]
[1769143941664,0.7862495,2983.4,2982.4,0.14797965]
[1769143941863,1.865,2983.6,2982.4,0.14797965]
[1769143942062,0.7862462,2983.5,2982.4,0.14797965]
[1769143942262,0.7862462,2983.4,2982.4,0.14797965]
[1769143942462,1.865,2983.6,2982.4,0.14797965]
[1769143942668,0.78624913,2983.5,2982.4,0.14797965]
[1769143942863,0.78624913,2983.4,2982.4,0.14797965]
[1769143943062,1.865,2983.6,2982.4,0.14797965]
[1769143943261,0.78626054,2983.5,2982.4,0.14797965]
[1769143943462,0.78626054,2983.4,2982.4,0.14797965]
[1769143943670,1.865,2983.6,2982.4,0.14797965]
[1769143943968,0.78624661,2983.5,2982.4,0.14797965]
[1769143944169,0.78624661,2983.4,2982.4,0.14797965]
[1769143944366,1.865,2983.6,2982.4,0.14797965]
[1769143944667,0.78624462,2983.5,2982.4,0.14797965]
[1769143944867,0.78624462,2983.4,2982.4,0.14797965]
[1769143945070,0.78624462,2983.3,2982.4,0.14797965]
[1769143945269,0.88089511,2983.5,2982.2,1.77666242]
[1769143945472,0.78624492,2983.4,2982.2,1.77666242]
[1769143945767,0.78624492,2983.3,2982.2,1.77666242]
[1769143945970,0.88089511,2983.5,2982.2,1.77666242]
[1769143946171,0.78624524,2983.4,2982.2,1.77666242]
[1769143946372,0.78624524,2983.3,2982.2,1.77666242]
[1769143946571,0.88089511,2983.5,2982.2,1.77666242]
[1769143946771,0.78624168,2983.4,2982.2,1.77666242]
[1769143947070,0.78624168,2983.3,2982.2,1.77666242]
[1769143947273,0.88089511,2983.5,2982.2,1.77666242]
[1769143947472,0.78623967,2983.4,2982.2,1.77666242]
[1769143947665,0.78623967,2983.3,2982.2,1.77666242]
[1769143947866,0.88089511,2983.5,2982.2,1.77666242]
[1769143948062,0.78623961,2983.4,2982.2,1.77666242]
[1769143948266,0.78623961,2983.3,2982.2,1.77666242]
[1769143948466,0.78628268,2983.2,2982.1,1.77666242]
[1769143948673,0.7863013,2983.1,2982.0,1.92754795]
[1769143948872,0.88089511,2983.5,2982.0,1.92754795]
[1769143949173,0.78630136,2983.4,2982.0,1.92754795]
[1769143949366,0.78630136,2983.3,2982.0,1.92754795]
[1769143949566,0.78630136,2983.2,2982.0,1.92754795]
[1769143949761,1.66719647,2983.1,2981.9,1.79191777]
[1769143950073,0.78630136,2983.0,2981.6,0.14744847]
[1769143950275,0.78630136,2982.9,2981.6,0.14744847]
[1769143950573,2.65130136,2982.8,2981.6,0.14744847]
[1769143950874,0.78630136,2982.7,2981.6,0.15044644]
[1769143951268,1.865,2983.1,2981.6,0.15044644]
[1769143951467,0.80102212,2983.0,2981.6,0.15044644]
[1769143951668,0.80102212,2982.9,2981.6,0.15044644]
[1769143951866,0.80102212,2982.8,2981.6,0.15044644]
[1769143952067,0.80102212,2982.7,2981.6,0.15044644]
[1769143952269,1.865,2983.1,2981.6,0.15044644]
[1769143952466,0.80081039,2983.0,2981.6,0.15044644]
[1769143952671,0.80081039,2982.9,2981.6,0.15044644]
[1769143952873,0.80081039,2982.8,2981.6,0.15044644]
[1769143953071,0.80081039,2982.7,2981.6,0.15044644]
[1769143953367,1.865,2983.1,2981.6,0.15044644]
[1769143953668,0.80065283,2983.0,2981.6,0.15044644]
[1769143953865,0.80065283,2982.9,2981.6,0.15044644]
[1769143954066,0.80065283,2982.8,2981.6,0.15044644]
[1769143954275,0.80065283,2982.7,2981.6,0.15044644]
[1769143954475,1.865,2983.1,2981.6,0.15044644]
[1769143954775,0.80051904,2983.0,2981.6,0.15044644]
[1769143955069,0.80051904,2982.9,2981.6,0.15044644]
[1769143955275,0.80051904,2982.8,2981.6,0.15044644]
[1769143955470,1.865,2983.1,2981.6,0.15044644]
[1769143955671,0.80039787,2983.0,2981.6,0.15044644]
[1769143955868,6.498,2983.4,2981.6,0.15044644]
[1769143956071,0.80033895,2983.3,2981.6,0.15044644]
[1769143956272,0.80033895,2983.2,2981.6,0.15044644]
[1769143956473,6.498,2983.4,2981.6,0.15044644]
[1769143956474,0.80033895,2983.1,2981.6,0.15044644]
[1769143956772,6.498,2983.4,2981.6,0.15044644]
[1769143956972,0.80027938,2983.3,2981.6,0.15044644]
[1769143957176,0.80027938,2983.2,2981.7,0.147264]
[1769143957364,0.88089511,2983.3,2981.7,0.147264]
[1769143957569,0.80032706,2983.2,2981.7,0.147264]
[1769143957771,0.80032706,2983.1,2981.7,0.147264]
[1769143957973,0.88089511,2983.3,2981.7,0.147264]
[1769143958274,0.80034014,2983.2,2981.7,0.147264]
[1769143958475,0.80034014,2983.1,2981.7,0.147264]
[1769143958677,0.88089511,2983.3,2981.7,0.147264]
[1769143958879,0.80319062,2983.2,2981.7,0.147264]
[1769143959175,0.80319062,2983.1,2981.7,0.147264]
[1769143959374,0.88089511,2983.3,2981.7,0.147264]
[1769143959576,0.80320661,2983.2,2981.7,0.147264]
[1769143959775,0.80320661,2983.1,2981.7,0.147264]
[1769143959970,0.88089511,2983.3,2981.7,0.147264]
[1769143960174,0.8032066,2983.2,2981.8,0.14739894]
[1769143960374,0.8032066,2983.1,2981.8,0.14739894]
[1769143960574,6.498,2983.4,2981.8,0.14739894]
[1769143960875,0.80322567,2983.3,2981.8,0.14739894]
[1769143961174,0.80322567,2983.2,2981.8,0.14739894]
[1769143961375,0.80322567,2983.1,2981.8,0.14739894]
[1769143961572,6.498,2983.4,2981.8,0.14739894]
[1769143961779,0.80324569,2983.3,2981.8,0.14739894]
[1769143961977,0.80324569,2983.2,2981.8,0.14739894]
[1769143962180,6.498,2983.4,2981.8,0.14739894]
[1769143962377,0.8032454,2983.3,2981.8,0.14739894]
[1769143962577,6.498,2983.4,2981.8,0.14739894]
[1769143962777,0.80321957,2983.3,2981.8,0.14739894]
[1769143962981,6.498,2983.4,2981.8,0.14739894]
[1769143963280,1.865,2983.9,2981.9,0.14742194]
[1769143963281,0.80321957,2983.3,2981.9,0.14742194]
[1769143963482,1.865,2983.9,2982.1,0.14742194]
[1769143963688,0.80313363,2983.8,2982.1,0.14742194]
[1769143963978,0.80313363,2983.7,2982.1,0.14742194]
[1769143964180,0.80313363,2983.6,2982.1,0.14742194]
[1769143964378,1.865,2983.9,2982.1,0.14742194]
[1769143964578,0.80314562,2983.8,2982.1,0.14742194]
[1769143964778,0.80314562,2983.7,2982.1,0.14742194]
[1769143964981,0.80314562,2983.6,2982.1,0.14742194]
[1769143965283,1.865,2983.9,2982.1,0.14742194]
[1769143965477,0.80321363,2983.8,2982.1,0.14742194]
[1769143965678,0.80321363,2983.7,2982.1,0.14742194]
[1769143965977,0.80321363,2983.6,2982.1,0.14742194]
[1769143966178,1.865,2983.9,2982.1,0.14742194]
[1769143966379,0.80326799,2983.8,2982.1,0.14742194]
[1769143966578,0.80326799,2983.7,2982.1,0.14742194]
[1769143966778,0.80326799,2983.6,2982.1,0.14742194]
[1769143966985,1.865,2983.9,2982.1,0.14742194]
[1769143967184,0.80326783,2983.8,2982.1,0.14742194]
[1769143967380,0.80326783,2983.7,2982.1,0.14742194]
[1769143967579,0.5,2983.1,2982.1,0.14742194]
[1769143969889,0.5,2983.1,2982.3,0.1477846]
[1769143973485,0.5,2983.1,2982.1,1.7884259]
[1769143974080,0.5,2983.1,2982.0,1.7884259]
[1769143974585,0.5,2983.1,2982.1,1.93612024]
[1769143974786,0.5,2983.1,2982.2,0.14769434]
[1769143976191,0.5,2983.1,2981.9,1.7884259]
[1769143977786,0.5,2983.1,2981.9,1.93599849]
[1769143981188,0.5,2983.1,2982.0,0.14691709]
[1769143983497,0.80381575,2983.0,2981.8,1.7884259]
[1769143983699,0.80381575,2982.9,2981.7,1.7884259]
[1769143983890,0.5,2983.1,2981.7,1.7884259]
[1769143984090,0.80382841,2983.0,2981.7,1.7884259]
[1769143984291,0.80382841,2982.9,2981.7,1.7884259]
[1769143984596,0.5,2983.1,2981.7,1.7884259]
[1769143984796,0.80392964,2983.0,2981.7,1.7884259]
[1769143984986,0.80392964,2982.9,2981.6,1.94103545]
[1769143985190,0.88089511,2982.6,2981.4,1.7884259]
[1769143985397,0.5,2983.1,2981.5,0.14882235]
[1769143985588,0.80388126,2983.0,2981.6,0.14882235]
[1769143985785,0.80388126,2982.9,2981.6,0.14882235]
[1769143985989,0.5,2983.1,2981.8,0.14882235]
[1769143986188,0.80385317,2983.0,2981.8,0.14882235]
[1769143986393,0.80384773,2982.9,2981.8,0.00424961]
[1769143986593,0.80384773,2982.9,2981.2,1.7884259]
[1769143986594,0.88089511,2982.6,2981.2,1.7884259]
[1769143986896,0.80384773,2982.5,2981.2,1.7884259]
[1769143987297,0.80384773,2982.5,2981.0,0.14881914]
[1769143987298,0.80384773,2982.5,2981.1,1.7884259]
[1769143987499,0.80384773,2982.5,2981.1,1.94067207]
[1769143988000,1.07257614,2982.5,2981.1,1.94067207]
[1769143988302,0.26872841,2982.5,2981.2,0.14881914]
[1769143988495,0.00502993,2982.7,2981.2,0.14881914]
[1769143988801,0.80406839,2982.6,2981.2,0.14881914]
[1769143989100,0.80406839,2982.5,2981.2,0.14881914]
[1769143989397,0.00502993,2982.7,2981.2,0.14881914]
[1769143989398,0.27478813,2982.6,2981.2,0.14881914]
[1769143989601,0.80378661,2982.5,2981.2,0.14881914]
[1769143989791,0.27478813,2982.6,2981.2,0.14881914]
[1769143989990,0.80378657,2982.5,2981.2,0.14881914]
[1769143990195,0.27478813,2982.6,2981.2,0.14881914]
[1769143990399,0.80354408,2982.5,2981.2,0.14881914]
[1769143990595,0.00502993,2982.7,2981.2,0.14881914]
[1769143990795,0.80354413,2982.6,2981.2,0.14881914]
[1769143990997,0.80354413,2982.5,2981.2,0.14881914]
[1769143991198,0.00502993,2982.7,2981.2,0.14881914]
[1769143993004,0.88124542,2982.6,2981.2,0.14881914]
[1769143996895,0.00502993,2982.7,2981.2,0.14881914]
[1769143997101,0.00502993,2982.7,2981.5,0.14813117]
[1769143999201,0.00502993,2982.7,2981.5,1.93655707]
[1769143999402,0.00502993,2982.7,2981.6,0.14825716]
[1769144000704,0.00502993,2982.7,2981.8,0.14874014]
[1769144003207,0.00502993,2982.7,2981.9,0.14801858]
[1769144004909,0.00252558,2983.0,2982.1,0.14801858]
[1769144012110,0.88124542,2982.8,2982.1,0.14801858]
[1769144014807,0.00252558,2983.0,2982.1,0.14801858]
[1769144016415,0.88124542,2982.5,2982.0,0.00502993]
[1769144017218,0.00252558,2983.0,2982.2,0.14567003]
[1769144021919,0.00489553,2983.1,2982.2,0.14567003]
[1769144022520,0.00489553,2983.1,2982.2,1.93409593]
[1769144022721,0.00489553,2983.1,2982.4,0.14254322]
[1769144022915,0.00850331,2983.1,2982.4,0.14254322]
[1769144023116,6.498,2983.8,2982.6,0.14254322]
[1769144023311,0.88124542,2984.1,2982.6,0.14254322]
[1769144023520,0.80389362,2984.0,2982.6,0.14254322]
[1769144023720,0.80389362,2983.9,2982.6,0.14254322]
[1769144023922,0.88124542,2984.1,2982.6,0.14254322]
[1769144024122,0.80387827,2984.0,2982.8,0.14254322]
[1769144024423,0.88395644,2984.1,2982.8,0.14254322]
[1769144024614,0.8037332,2984.0,2982.8,0.14254322]
[1769144024818,0.00271102,2984.1,2983.1,0.14252722]
[1769144025122,0.00271102,2984.1,2983.4,0.14252722]
[1769144025323,0.00271102,2984.1,2983.4,0.14575057]
[1769144027929,1.51526451,2984.7,2983.4,0.14575057]
[1769144028825,0.88557427,2984.7,2983.4,0.14575057]
[1769144030520,0.88124542,2984.4,2983.4,0.14575057]
[1769144035830,0.88124542,2984.4,2983.4,0.00322335]
[1769144036434,0.88124542,2984.4,2983.6,0.00502993]
[1769144043836,0.88557427,2984.7,2983.6,0.00502993]
[1769144045246,0.8013172,2984.6,2983.6,0.00502993]
[1769144045545,0.88557427,2984.7,2983.6,0.00502993]
[1769144045746,0.80136156,2984.6,2983.6,0.00502993]
[1769144046045,0.88557427,2984.7,2983.6,0.00502993]
[1769144046242,0.8013615,2984.6,2983.6,0.00502993]
[1769144046443,0.88557427,2984.7,2983.6,0.00502993]